fUST/lending_fUST_20240927
["ID","MTS","AMOUNT","RATE_DAILY","PERIOD"]
[339268982,1727423440004,-500.0,0.00019351,2]
[339268984,1727423440013,-500.0,0.00019351,2]
[339268986,1727423440023,-551.88637772,0.00019351,2]
[339268987,1727423440032,-3848.0,0.00019352,2]
[339268989,1727423440041,-200.0,0.00019452,2]
[339268990,1727423440051,-500.0,0.00019452,2]
[339268992,1727423440060,-500.0,0.00019452,2]
[339268993,1727423440069,-500.0,0.00019452,2]
[339268995,1727423440080,-500.0,0.00019452,2]
[339268997,1727423440090,-1681.96,0.00019452,2]
[339268999,1727423440101,-500.0,0.00019452,2]
[339269001,1727423440112,-500.0,0.00019452,2]
[339269003,1727423440122,-11483.47,0.00019452,2]
[339269005,1727423440131,-2104.04,0.00019452,2]
[339269007,1727423440141,-200.0,0.00019726,2]
[339269009,1727423440151,-500.0,0.00019726,2]
[339269011,1727423440160,-500.0,0.00019726,2]
[339269012,1727423440170,-187.06272016,0.00019726,2]
[339269014,1727423440179,-500.0,0.00019726,2]
[339269016,1727423440188,-1681.96,0.00019726,2]
[339269018,1727423440198,-500.0,0.00019726,2]
[339269019,1727423440207,-500.0,0.00019726,2]
[339269020,1727423440217,-11483.47,0.00019726,2]
[339269021,1727423440226,-2104.04,0.00019726,2]
[339269022,1727423440236,-21668.29397749,0.000199,2]
[339269023,1727423440245,-2959.16331066,0.000199,2]
[339269024,1727423440255,-1116.62,0.0001998,3]
[339269025,1727423440264,-558.31,0.0001998,3]
[339269026,1727423440273,-279.15,0.0001998,3]
[339269027,1727423440283,-837.5,0.0001998,3]
[339269028,1727423440292,-332343.947307,0.0001999,3]
[339269029,1727423440301,-153536.17439397,0.0001999,3]
[339269030,1727423441268,-226786.00465503,0.0001999,3]
[339269031,1727423441277,-232589.26282073,0.0002,2]
[339269032,1727423441287,-5000.0,0.0002,3]
[339269033,1727423441297,-151.0,0.0002,2]
[339269034,1727423441306,-151.0,0.0002,2]
[339269035,1727423441315,-151.0,0.0002,2]
[339269036,1727423441325,-151.0,0.0002,2]
[339269037,1727423441333,-500.0,0.0002,2]
[339269038,1727423441343,-151.0,0.0002,2]
[339269039,1727423441352,-151.0,0.0002,2]
[339269040,1727423441361,-500.0,0.0002,2]
[339269041,1727423441370,-151.19763648,0.0002,2]
[339269042,1727423441379,-151.0,0.0002,2]
[339269043,1727423441390,-151.0,0.0002,2]
[339269044,1727423441399,-879.26,0.0002,2]
[339269045,1727423441408,-537.53557,0.0002,2]
[339269046,1727423441417,-995.37,0.0002,2]
[339269047,1727423441426,-1140.52,0.0002,2]
[339269048,1727423441435,-500.0,0.0002,2]
[339269049,1727423441445,-151.0,0.0002,2]
[339269050,1727423441454,-151.0,0.0002,2]
[339269051,1727423441463,-886.59,0.0002,2]
[339269052,1727423441473,-151.0,0.0002,2]
[339269053,1727423441482,-309.826123,0.0002,2]
[339269054,1727423441494,-309.826123,0.0002,2]
[339269055,1727423441503,-278.409609,0.0002,2]
[339269056,1727423441513,-317.03367,0.0002,2]
[339269057,1727423441522,-278.409609,0.0002,2]
[339269058,1727423441531,-317.03367,0.0002,2]
[339269059,1727423441543,-181.522127,0.0002,2]
[339269060,1727423441553,-181.522127,0.0002,2]
[339269061,1727423441563,-151.0,0.0002,2]
[339269062,1727423441573,-500.0,0.0002,2]
[339269063,1727423441582,-151.0,0.0002,2]
[339269064,1727423441592,-151.0,0.0002,2]
[339269065,1727423441601,-1581.49,0.0002,2]
[339269066,1727423441610,-200.0,0.0002,2]
[339269067,1727423441619,-500.0,0.0002,2]
[339269068,1727423441628,-500.0,0.0002,2]
[339269069,1727423441639,-500.0,0.0002,2]
[339269070,1727423441648,-1681.96,0.0002,2]
[339269071,1727423441658,-500.0,0.0002,2]
[339269072,1727423441667,-500.0,0.0002,2]
[339269073,1727423441676,-11483.47,0.0002,2]
[339269074,1727423441685,-2104.04,0.0002,2]
[339269075,1727423441694,-151.0,0.00020273,2]
[339269076,1727423441703,-500.0,0.00020273,2]
[339269077,1727423441712,-500.0,0.00020273,2]
[339269078,1727423441721,-879.26,0.00020273,2]
[339269079,1727423441731,-995.37,0.00020273,2]
[339269080,1727423441740,-1140.52,0.00020273,2]
[339269081,1727423441749,-500.0,0.00020273,2]
[339269082,1727423441759,-886.59,0.00020273,2]
[339269083,1727423441768,-500.0,0.00020273,2]
[339269084,1727423441777,-1581.49,0.00020273,2]
[339269085,1727423441786,-200.0,0.00020273,2]
[339269086,1727423441794,-500.0,0.00020273,2]
[339269087,1727423441803,-500.0,0.00020273,2]
[339269088,1727423441812,-500.0,0.00020273,2]
[339269089,1727423441821,-1681.96,0.00020273,2]
[339269090,1727423441830,-640.47,0.00020273,2]
[339269091,1727423441839,-500.0,0.00020273,2]
[339269092,1727423441849,-11483.47,0.00020273,2]
[339269093,1727423441859,-2104.04,0.00020273,2]
[339269094,1727423441870,-154.3608889,0.00020274,2]
[339269095,1727423441879,-526.743,0.00020276,2]
[339269096,1727423441892,-1220.467,0.00020276,2]
[339269097,1727423441901,-151.0,0.00020377,2]
[339269098,1727423441910,-500.0,0.0002039,7]
[339269099,1727423441920,-500.0,0.0002039,7]
[339269100,1727423441929,-453.34,0.0002039,7]
[339269101,1727423441939,-500.0,0.0002039,7]
[339269102,1727423441949,-500.0,0.0002039,7]
[339269103,1727423441958,-500.0,0.0002039,7]
[339269104,1727423441968,-500.0,0.0002039,7]
[339269105,1727423441977,-500.0,0.0002039,7]
[339269106,1727423441986,-500.0,0.0002039,7]
[339269107,1727423441995,-500.0,0.0002039,7]
[339269108,1727423442004,-500.0,0.0002039,7]
[339269109,1727423442013,-500.0,0.0002039,7]
[339269110,1727423442022,-500.0,0.0002039,7]
[339269111,1727423442031,-168.94,0.0002039,7]
[339269112,1727423442040,-500.0,0.0002039,7]
[339269113,1727423442050,-500.0,0.0002039,7]
[339269114,1727423442059,-5000.0,0.00020415,2]
[339269115,1727423442068,-487.88917759,0.00020438,2]
[339269116,1727423442077,-1049.04192041,0.00020521,2]
[339269117,1727423442086,-500.0,0.00020547,2]
[339269118,1727423442096,-500.0,0.00020547,2]
[339269119,1727423442105,-879.26,0.00020547,2]
[339269120,1727423442115,-995.37,0.00020547,2]
[339269121,1727423442124,-1140.52,0.00020547,2]
[339269122,1727423442134,-500.0,0.00020547,2]
[339269123,1727423442144,-886.59,0.00020547,2]
[339269124,1727423442154,-500.0,0.00020547,2]
[339269125,1727423442163,-1581.49,0.00020547,2]
[339269126,1727423442173,-200.0,0.00020547,2]
[339269127,1727423442183,-500.0,0.00020547,2]
[339269128,1727423442192,-500.0,0.00020547,2]
[339269129,1727423442201,-500.0,0.00020547,2]
[339269130,1727423442210,-1681.96,0.00020547,2]
[339269131,1727423442220,-500.0,0.00020547,2]
[339269132,1727423442229,-11483.47,0.00020547,2]
[339269133,1727423442238,-2104.04,0.00020547,2]
[339269134,1727423442247,-500.0,0.00020821,2]
[339269135,1727423442256,-500.0,0.00020821,2]
[339269136,1727423442266,-879.26,0.00020821,2]
[339269137,1727423442275,-995.37,0.00020821,2]
[339269138,1727423442285,-1140.52,0.00020821,2]
[339269139,1727423442294,-500.0,0.00020821,2]
[339269140,1727423442303,-886.59,0.00020821,2]
[339269141,1727423442313,-500.0,0.00020821,2]
[339269142,1727423442322,-1581.49,0.00020821,2]
[339269143,1727423442331,-200.0,0.00020821,2]
[339269144,1727423442341,-500.0,0.00020821,2]
[339269145,1727423442350,-500.0,0.00020821,2]
[339269146,1727423442359,-500.0,0.00020821,2]
[339269147,1727423442368,-1681.96,0.00020821,2]
[339269148,1727423442378,-500.0,0.00020821,2]
[339269149,1727423442390,-11483.47,0.00020821,2]
[339269150,1727423442399,-2104.04,0.00020821,2]
[339269151,1727423442408,-420.0,0.00020854,2]
[339269152,1727423442418,-152.79482226,0.00020902,2]
[339269153,1727423442427,-194.7565949,0.0002096,2]
[339269154,1727423442436,-151.0,0.00021,2]
[339269155,1727423442446,-290.0,0.00021,2]
[339269156,1727423442456,-3000.0,0.00021,2]
[339269157,1727423442465,-3000.0,0.0002101,2]
[339269158,1727423442474,-3000.0,0.0002102,2]
[339269159,1727423442483,-251.237439,0.00021026,2]
[339269160,1727423442496,-159.654838,0.00021026,2]
[339269161,1727423442506,-151.0,0.0002103,2]
[339269162,1727423442515,-3000.0,0.0002103,2]
[339269163,1727423442525,-3000.0,0.0002104,2]
[339269164,1727423442534,-420.0,0.00021048,2]
[339269165,1727423442546,-3000.0,0.0002105,2]
[339269166,1727423442555,-3000.0,0.0002106,2]
[339269167,1727423442564,-3000.0,0.0002107,2]
[339269168,1727423442574,-5720.87370826,0.0002107,2]
[339269169,1727423442584,-500.0,0.00021073,2]
[339269170,1727423442594,-3000.0,0.0002108,2]
[339269171,1727423442603,-3000.0,0.0002109,2]
[339269172,1727423442613,-500.0,0.00021095,2]
[339269173,1727423442622,-500.0,0.00021095,2]
[339269174,1727423442632,-879.26,0.00021095,2]
[339269175,1727423442644,-995.37,0.00021095,2]
[339269176,1727423442653,-1140.52,0.00021095,2]
[339269177,1727423442663,-500.0,0.00021095,2]
[339269178,1727423442673,-886.59,0.00021095,2]
[339269180,1727423442682,-500.0,0.00021095,2]
[339269181,1727423442692,-1581.49,0.00021095,2]
[339269182,1727423442702,-200.0,0.00021095,2]
[339269183,1727423442711,-500.0,0.00021095,2]
[339269184,1727423442721,-318.64864345,0.00021095,2]
[339269185,1727423442731,-500.0,0.00021095,2]
[339269186,1727423442741,-1681.96,0.00021095,2]
[339269187,1727423442750,-500.0,0.00021095,2]
[339269188,1727423442759,-11483.47,0.00021095,2]
[339269189,1727423442769,-2104.04,0.00021095,2]
[339269190,1727423442778,-150.112233,0.000211,2]
[339269191,1727423442787,-3000.0,0.000211,2]
[339269193,1727423442797,-3000.0,0.0002111,2]
[339269195,1727423442808,-3000.0,0.0002112,2]
[339269197,1727423442818,-3000.0,0.0002113,2]
[339269199,1727423442829,-3000.0,0.0002114,2]
[339269201,1727423442839,-3000.0,0.0002115,2]
[339269202,1727423442849,-5994.797052,0.0002116,2]
[339269204,1727423442859,-5720.87370826,0.00021172,2]
[339269206,1727423442869,-150.112247,0.000212,4]
[339269208,1727423442878,-150.0,0.00021225,2]
[339269210,1727423442889,-177.064664,0.000213,2]
[339269212,1727423442898,-2233.24,0.0002135,3]
[339269214,1727423442908,-1116.62,0.0002135,3]
[339269216,1727423442917,-558.3,0.0002135,3]
[339269217,1727423442927,-295.36111,0.00021369,2]
[339269218,1727423442937,-500.0,0.00021369,2]
[339269219,1727423442946,-500.0,0.00021369,2]
[339269220,1727423442956,-879.26,0.00021369,2]
[339269221,1727423442967,-995.37,0.00021369,2]
[339269222,1727423442977,-1140.52,0.00021369,2]
[339269223,1727423442987,-500.0,0.00021369,2]
[339269224,1727423442997,-886.59,0.00021369,2]
[339269225,1727423443007,-500.0,0.00021369,2]
[339269226,1727423443017,-1581.49,0.00021369,2]
[339269227,1727423443026,-200.0,0.00021369,2]
[339269228,1727423443035,-500.0,0.00021369,2]
[339269229,1727423443044,-500.0,0.00021369,2]
[339269230,1727423443054,-1681.96,0.00021369,2]
[339269231,1727423443063,-500.0,0.00021369,2]
[339269233,1727423443073,-11483.47,0.00021369,2]
[339269235,1727423443083,-2104.04,0.00021369,2]
[339269237,1727423443093,-2581.08818702,0.00021389,2]
[339269238,1727423443102,-150.112233,0.000214,2]
[339269239,1727423443111,-153.4899465,0.00021408,2]
[339269240,1727423443121,-290.0,0.0002146,2]
[339269241,1727423443131,-466.14445888,0.0002146,2]
[339269242,1727423443142,-151.0,0.00021499,2]
[339269243,1727423443151,-407.18,0.000215,2]
[339269244,1727423443160,-150.112233,0.000215,3]
[339269245,1727423443171,-465.0256443,0.0002153,2]
[339269246,1727423443180,-235.107178,0.00021551,2]
[339269247,1727423443190,-217.065364,0.00021551,2]
[339269248,1727423443199,-150.112233,0.000216,4]
[339269249,1727423443209,-1000.0,0.00021621,2]
[339269250,1727423443218,-500.0,0.00021643,2]
[339269251,1727423443228,-500.0,0.00021643,2]
[339269253,1727423443238,-879.26,0.00021643,2]
[339269254,1727423443248,-995.37,0.00021643,2]
[339269255,1727423443258,-1140.52,0.00021643,2]
[339269256,1727423443268,-500.0,0.00021643,2]
[339269257,1727423443279,-886.59,0.00021643,2]
[339269258,1727423443289,-500.0,0.00021643,2]
[339269259,1727423443302,-1581.49,0.00021643,2]
[339269260,1727423443312,-200.0,0.00021643,2]
[339269261,1727423443323,-500.0,0.00021643,2]
[339269262,1727423443333,-500.0,0.00021643,2]
[339269263,1727423443343,-1681.96,0.00021643,2]
[339269264,1727423443354,-500.0,0.00021643,2]
[339269265,1727423443365,-11483.47,0.00021643,2]
[339269266,1727423443374,-2104.04,0.00021643,2]
[339269267,1727423443385,-150.112233,0.000217,2]
[339269268,1727423443394,-3088.97245557,0.00021714,2]
[339269269,1727423443403,-151.0,0.0002173,2]
[339269270,1727423443412,-153.0,0.00021753,2]
[339269271,1727423443423,-153.0,0.00021753,2]
[339269272,1727423443435,-153.0,0.00021753,2]
[339269274,1727423443446,-2158.94758444,0.00021779,2]
[339269276,1727423443456,-22706.23486237,0.0002179,2]
[339269278,1727423443467,-151.00831979,0.00021807,2]
[339269280,1727423443477,-235.107178,0.00021814,2]
[339269281,1727423443486,-217.065364,0.00021814,2]
[339269282,1727423443501,-2500.0,0.00021855,2]
[339269283,1727423443510,-278.409609,0.00021855,2]
[339269284,1727423443521,-278.409609,0.00021855,2]
[339269285,1727423443531,-181.522127,0.00021855,2]
[339269286,1727423443541,-181.522127,0.00021855,2]
[339269287,1727423443554,-151.0,0.00021855,2]
[339269288,1727423443565,-151.0,0.00021855,2]
[339269289,1727423443575,-2500.0,0.00021864,2]
[339269290,1727423443585,-2500.0,0.00021873,2]
[339269291,1727423443594,-2500.0,0.00021881,2]
[339269292,1727423443604,-1289.17,0.0002189,7]
[339269293,1727423443614,-1289.17,0.0002189,7]
[339269294,1727423443623,-1289.17,0.0002189,7]
[339269295,1727423443634,-1289.17,0.0002189,7]
[339269296,1727423443643,-1289.17,0.0002189,7]
[339269297,1727423443652,-1289.17,0.0002189,7]
[339269298,1727423443662,-1289.17,0.0002189,7]
[339269299,1727423443672,-1289.17,0.0002189,7]
[339269300,1727423443682,-1289.17,0.0002189,7]
[339269301,1727423443691,-1289.17,0.0002189,7]
[339269302,1727423443701,-1289.17,0.0002189,7]
[339269303,1727423443712,-1289.17,0.0002189,7]
[339269304,1727423443723,-1289.17,0.0002189,7]
[339269305,1727423443734,-1289.17,0.0002189,7]
[339269306,1727423443744,-1289.17,0.0002189,7]
[339269307,1727423443753,-1289.17,0.0002189,7]
[339269308,1727423443763,-1289.17,0.0002189,7]
[339269309,1727423443772,-1289.17,0.0002189,7]
[339269310,1727423443783,-1289.17,0.0002189,7]
[339269311,1727423443792,-1289.17,0.0002189,7]
[339269312,1727423443802,-1289.17,0.0002189,7]
[339269313,1727423443812,-1289.17,0.0002189,7]
[339269314,1727423443822,-1289.17,0.0002189,7]
[339269315,1727423443831,-1289.19301149,0.0002189,7]
[339269316,1727423443840,-151.0,0.0002189,2]
[339269317,1727423443850,-197.006377,0.0002189,2]
[339269318,1727423443859,-151.0,0.0002189,2]
[339269319,1727423443977,-317.03367,0.0002189,2]
[339269320,1727423443988,-317.03367,0.0002189,2]
[339269321,1727423443997,-151.0,0.0002189,2]
[339269322,1727423444007,-2500.0,0.0002189,2]
[339269323,1727423444016,-151.0,0.00021898,2]
[339269324,1727423444026,-151.0,0.00021898,2]
[339269325,1727423444037,-151.0,0.00021898,2]
[339269326,1727423444046,-855.93172557,0.00021898,2]
[339269327,1727423444056,-2500.0,0.00021899,2]
[339269328,1727423444066,-19874.64284927,0.000219,2]
[339269329,1727423444075,-151.0,0.000219,2]
[339269330,1727423444085,-151.0,0.000219,2]
[339269331,1727423444095,-151.0,0.000219,2]
[339269332,1727423444105,-537.53557,0.000219,2]
[339269333,1727423444115,-309.826123,0.000219,2]
[339269334,1727423444127,-309.826123,0.000219,2]
[339269335,1727423444138,-256.75,0.000219,31]
[339269336,1727423444149,-256.75,0.000219,31]
[339269337,1727423444159,-256.75,0.000219,31]
[339269338,1727423444169,-256.75,0.000219,31]
[339269339,1727423444179,-256.75,0.000219,31]
[339269340,1727423444189,-256.75,0.000219,31]
[339269341,1727423444199,-256.75,0.000219,31]
[339269342,1727423444208,-256.75,0.000219,31]
[339269343,1727423444218,-256.75,0.000219,31]
[339269344,1727423444228,-256.75,0.000219,31]
[339269345,1727423444238,-256.75,0.000219,31]
[339269346,1727423444248,-256.75,0.000219,31]
[339269347,1727423444257,-256.75,0.000219,31]
[339269348,1727423444267,-256.75,0.000219,31]
[339269349,1727423444277,-256.75,0.000219,31]
[339269350,1727423444286,-256.75,0.000219,31]
[339269351,1727423444296,-151.0,0.00021917,2]
[339269352,1727423444306,-153.99012,0.00021917,2]
[339269353,1727423444316,-151.0,0.00021917,2]
[339269354,1727423444325,-500.0,0.00021917,2]
[339269355,1727423444335,-501.84482045,0.00021917,2]
[339269356,1727423444344,-151.0,0.00021917,2]
[339269357,1727423444354,-500.0,0.00021917,2]
[339269358,1727423444363,-721.36,0.00021917,2]
[339269359,1727423444372,-721.36,0.00021917,2]
[339269360,1727423444382,-721.36,0.00021917,2]
[339269361,1727423444393,-721.36,0.00021917,2]
[339269362,1727423444403,-721.36,0.00021917,2]
[339269363,1727423444412,-721.36,0.00021917,2]
[339269364,1727423444422,-721.36,0.00021917,2]
[339269365,1727423444432,-721.36,0.00021917,2]
[339269366,1727423444441,-721.36,0.00021917,2]
[339269367,1727423444451,-721.36,0.00021917,2]
[339269368,1727423444461,-721.36,0.00021917,2]
[339269369,1727423444471,-721.36,0.00021917,2]
[339269370,1727423444481,-721.36,0.00021917,2]
[339269371,1727423444492,-721.36,0.00021917,2]
[339269372,1727423444502,-721.36,0.00021917,2]
[339269373,1727423444512,-721.36,0.00021917,2]
[339269374,1727423444522,-721.36,0.00021917,2]
[339269375,1727423444532,-721.36,0.00021917,2]
[339269376,1727423444542,-721.36,0.00021917,2]
[339269377,1727423444552,-721.36,0.00021917,2]
[339269378,1727423444562,-721.36,0.00021917,2]
[339269379,1727423444571,-721.36,0.00021917,2]
[339269380,1727423444582,-721.36,0.00021917,2]
[339269381,1727423444592,-721.46746821,0.00021917,2]
[339269382,1727423444602,-879.26,0.00021917,2]
[339269383,1727423444611,-995.37,0.00021917,2]
[339269384,1727423444621,-1000.0,0.00021917,5]
[339269385,1727423444631,-1000.0,0.00021917,5]
[339269386,1727423444642,-1000.0,0.00021917,5]
[339269387,1727423444652,-1000.0,0.00021917,5]
[339269388,1727423444661,-818.45250916,0.00021917,5]
[339269389,1727423444670,-1140.52,0.00021917,2]
[339269390,1727423444679,-500.0,0.00021917,2]
[339269391,1727423444689,-886.59,0.00021917,2]
[339269392,1727423444699,-500.0,0.00021917,2]
[339269393,1727423444708,-509.13708894,0.00021917,2]
[339269394,1727423444718,-178.20980002,0.00021917,2]
[339269395,1727423444727,-1581.49,0.00021917,2]
[339269396,1727423444737,-200.0,0.00021917,2]
[339269397,1727423444747,-500.0,0.00021917,2]
[339269398,1727423444757,-500.0,0.00021917,2]
[339269399,1727423444767,-500.0,0.00021917,2]
[339269400,1727423444777,-1681.96,0.00021917,2]
[339269401,1727423444787,-500.0,0.00021917,2]
[339269402,1727423444796,-11483.47,0.00021917,2]
[339269403,1727423444806,-2104.04,0.00021917,2]
[339269404,1727423444816,-224.37800891,0.00021918,2]
[339269405,1727423444826,-290.0,0.0002192,2]
[339269406,1727423444835,-158.67238847,0.0002192,7]
[339269407,1727423444844,-158.67238847,0.0002192,7]
[339269408,1727423444854,-158.67238847,0.0002192,7]
[339269409,1727423444863,-158.67238847,0.0002192,7]
[339269410,1727423444872,-158.67238847,0.0002192,7]
[339269411,1727423444882,-158.67238847,0.0002192,7]
[339269412,1727423444893,-158.67238847,0.0002192,7]
[339269413,1727423444902,-158.67238847,0.0002192,7]
[339269414,1727423444911,-159.17,0.0002192,7]
[339269415,1727423444920,-3212.243,0.00021939,2]
[339269416,1727423444930,-300.404,0.00021939,2]
[339269417,1727423444939,-151.0,0.0002196,2]
[339269418,1727423444950,-501.86122269,0.00021973,2]
[339269419,1727423444959,-500.0,0.00021973,2]
[339269420,1727423444969,-500.13969444,0.00021973,2]
[339269421,1727423444978,-500.0,0.00021973,2]
[339269422,1727423444988,-245.0948515,0.00022,2]
[339269423,1727423444998,-7484.60014134,0.00022,30]
[339269424,1727423445008,-1314.53059825,0.00022,2]
[339269425,1727423445018,-960.0,0.00022,7]
[339269426,1727423445028,-151.0,0.00022,7]
[339269427,1727423445039,-151.0,0.00022,7]
[339269428,1727423445048,-151.0,0.00022,7]
[339269429,1727423445058,-151.0,0.00022,7]
[339269430,1727423445068,-151.0,0.00022,7]
[339269431,1727423445077,-151.0,0.00022,7]
[339269432,1727423445087,-151.0,0.00022,7]
[339269433,1727423445097,-151.0,0.00022,7]
[339269434,1727423445106,-151.0,0.00022,7]
[339269435,1727423445115,-3796.2,0.00022,6]
[339269436,1727423445125,-12791.16297495,0.0002201,16]
[339269437,1727423445133,-1370.7504737,0.0002205,120]
[339269438,1727423445145,-235.107178,0.00022077,2]
[339269439,1727423445156,-217.065364,0.00022077,2]
[339269440,1727423445166,-207.740429,0.00022077,2]
[339269441,1727423445175,-160.0,0.00022096,3]
[339269442,1727423445185,-160.82507759,0.00022096,5]
[339269443,1727423445195,-160.0,0.00022096,5]
[339269444,1727423445204,-13294.799999,0.000221,7]
[339269445,1727423445213,-500.0,0.00022191,2]
[339269446,1727423445223,-500.0,0.00022191,2]
[339269447,1727423445234,-879.26,0.00022191,2]
[339269448,1727423445245,-995.37,0.00022191,2]
[339269449,1727423445255,-1140.52,0.00022191,2]
[339269450,1727423445264,-500.0,0.00022191,2]
[339269451,1727423445274,-886.59,0.00022191,2]
[339269452,1727423445283,-347.720359,0.00022191,7]
[339269453,1727423445292,-347.720359,0.00022191,7]
[339269454,1727423445302,-151.0,0.00022191,7]
[339269455,1727423445312,-1581.49,0.00022191,2]
[339269456,1727423445321,-151.0,0.00022191,7]
[339269457,1727423445330,-151.0,0.00022191,2]
[339269458,1727423445339,-200.0,0.00022191,2]
[339269459,1727423445348,-151.0,0.00022191,7]
[339269460,1727423445357,-151.0,0.00022191,7]
[339269461,1727423445367,-500.0,0.00022191,2]
[339269462,1727423445376,-198.247332,0.00022191,7]
[339269463,1727423445387,-198.247332,0.00022191,7]
[339269464,1727423445396,-177.418133,0.00022191,7]
[339269465,1727423445406,-177.418133,0.00022191,7]
[339269466,1727423445415,-500.0,0.00022191,2]
[339269467,1727423445424,-1681.96,0.00022191,2]
[339269468,1727423445435,-500.0,0.00022191,2]
[339269469,1727423445444,-11483.47,0.00022191,2]
[339269470,1727423445454,-2104.04,0.00022191,2]
[339269471,1727423445463,-1319.96783785,0.000223,2]
[339269472,1727423445473,-1500.0,0.00022331,2]
[339269473,1727423445482,-290.0,0.0002237,2]
[339269474,1727423445492,-500.0,0.00022465,2]
[339269475,1727423445504,-500.0,0.00022465,2]
[339269476,1727423445514,-879.26,0.00022465,2]
[339269477,1727423445524,-995.37,0.00022465,2]
[339269478,1727423445534,-1140.52,0.00022465,2]
[339269479,1727423445544,-500.0,0.00022465,2]
[339269480,1727423445555,-886.59,0.00022465,2]
[339269481,1727423445565,-1581.49,0.00022465,2]
[339269482,1727423445577,-162.41177501,0.00022465,2]
[339269483,1727423445588,-500.0,0.00022465,2]
[339269484,1727423445597,-500.0,0.00022465,2]
[339269485,1727423445607,-1681.96,0.00022465,2]
[339269486,1727423445620,-500.0,0.00022465,2]
[339269487,1727423445629,-11483.47,0.00022465,2]
[339269488,1727423445642,-2104.04,0.00022465,2]
[339269489,1727423445651,-1000.0,0.00022521,2]
[339269490,1727423445660,-587.0,0.00022728,2]
[339269491,1727423445670,-500.0,0.00022739,2]
[339269492,1727423445682,-500.0,0.00022739,2]
[339269493,1727423445692,-879.26,0.00022739,2]
[339269495,1727423445702,-995.37,0.00022739,2]
[339269496,1727423445713,-1140.52,0.00022739,2]
[339269497,1727423445723,-500.0,0.00022739,2]
[339269498,1727423445733,-886.59,0.00022739,2]
[339269499,1727423445743,-278.409609,0.00022739,7]
[339269501,1727423445752,-278.409609,0.00022739,7]
[339269502,1727423445760,-181.522127,0.00022739,7]
[339269503,1727423445769,-181.522127,0.00022739,7]
[339269504,1727423445779,-151.0,0.00022739,7]
[339269505,1727423445788,-151.0,0.00022739,7]
[339269506,1727423445797,-1581.49,0.00022739,2]
[339269507,1727423445807,-500.0,0.00022739,2]
[339269508,1727423445817,-500.0,0.00022739,2]
[339269509,1727423445828,-1681.96,0.00022739,2]
[339269510,1727423445838,-500.0,0.00022739,2]
[339269511,1727423445848,-11483.47,0.00022739,2]
[339269512,1727423445857,-2104.04,0.00022739,2]
[339269514,1727423445866,-290.0,0.0002283,2]
[339269515,1727423445875,-240.63967803,0.00023,2]
[339269517,1727423445884,-1000.0,0.00023,120]
[339269518,1727423445905,-3460.85053387,0.00023,30]
[339269519,1727423445913,-250.0,0.00023,2]
[339269520,1727423445923,-302.39527296,0.00023,2]
[339269521,1727423445932,-200.0,0.00023,2]
[339269522,1727423445941,-302.36509981,0.00023,2]